Cogmind - Beta 16.1 @@@ ROGUE MODE // 2026.04.26 @ 22:29:09 Player: JovialTruth Result: Destroyed by G-34 Mercenary with Small Laser Performance ------------- Evolutions (0) 0 Regions Visited (1) 200 Robots Destroyed (15) 75 Value Destroyed (243) 243 Prototype IDs (2) 40 Alien Tech Used (0) 0 Bonus (0) 0 TOTAL SCORE: 558 Bonus ------- None Cogmind --------- Core Integrity 0/250 Matter 260/300 Energy 100/100 System Corruption 1% Temperature Cool (6) Movement Hovering (240) Ox3 Location -10/Materials Parts ------- > --- POWER (1) -------- (None) > --- PROPULSION (2) --- Improved Hover Unit > --- UTILITY (2) ------ Large Storage Unit Structural Scanner > --- WEAPON (2) ------- Hammer > --- INVENTORY (15) --- Improved Hover Unit Improved Hover Unit Improved Hover Unit Flight Unit Targeting Computer Shield Generator Grenade Launcher Peak State ------------ > --- POWER ------------ Light Ion Engine > --- PROPULSION ------- Wheel Flight Unit > --- UTILITY ---------- Heat Sink Large Matter Pod > --- WEAPON ----------- Assault Rifle Light Assault Rifle > --- INVENTORY -------- Hover Unit EM Pulse Gun [Rating: 7] Favorites ----------- Power Light Ion Engine Engine Light Ion Engine Propulsion Aluminum Leg Leg Aluminum Leg Wheel Wheel Hover Unit Improved Hover Unit Flight Unit Flight Unit Utility Large Matter Pod Device Structural Scanner Storage Large Matter Pod Processor Signal Interpreter Weapon Light Assault Rifle Energy Gun Small Laser Ballistic Gun Light Assault Rifle Ballistic Cannon Light Cannon Special Weapon Mining Laser Impact Weapon Hammer Build | -11 -10 ------- Run | Yrd Mat Slots Evolved . | . . Power . | . . Propulsion . | . . Utility . | . . Weapon . | . . Parts Attached 26 | 6 20 Power 3 | 1 2 Engine 3 | 1 2 Core . | . . Reactor . | . . Propulsion 7 | 1 6 Treads . | . . Leg 1 | . 1 Wheel 2 | 1 1 Hover 1 | . 1 Flight 3 | . 3 Utility 6 | 1 5 Device 3 | 1 2 Storage 2 | . 2 Processor 1 | . 1 Hackware . | . . Protection . | . . Artifact . | . . Weapon 10 | 3 7 Energy Gun 2 | 1 1 Energy Cannon . | . . Ballistic Gun 3 | 2 1 Ballistic Cannon 1 | . 1 Launcher . | . . Special Weapon 3 | . 3 Impact Weapon 1 | . 1 Slashing Weapon . | . . Piercing Weapon . | . . Special Melee Weapon . | . . Unidentified Prototypes . | . . Parts Lost 10 | . 10 Power 3 | . 3 Propulsion 2 | . 2 Utility 1 | . 1 Weapon 4 | . 4 Highest Loss Streak 6 | . 6 To Critical Strikes . | . . Average Backups 3 | 1 3 Power . | . . Propulsion . | . . Utility . | . . Weapon 2 | 1 2 Tool/Special . | . . Unused Backups 4 | . 4 Power . | . . Propulsion 1 | . 1 Utility 1 | . 1 Weapon 2 | . 2 Tool/Special . | . . Average Slot Usage (%) 72 | . 72 Engine 7 | . 7 Leg 6 | . 6 Wheel 3 | . 3 Flight 5 | . 5 Device 13 | . 13 Storage 10 | . 10 Energy Gun 1 | . 1 Ballistic Gun 10 | . 10 Ballistic Cannon 6 | . 6 Special Weapon 3 | . 3 Impact Weapon 2 | . 2 Peak Build Rating 7 | 5 7 Average Rating 4 | 2 5 On Entrance 2 | . 5 Avg Prop Armor Cover (%) 3 | . 3 Naked Turns . | . . Heaviest Build 23 | 7 23 Greatest Support 10 | 10 10 Greatest Overweight (x) 3 | . 3 Average Overweight (x) . | . . Largest Inventory Capacity 15 | 5 15 Average Capacity 5 | 5 5 Most Carried 7 | 4 7 Average Carried 3 | 2 3 Final Capacity 15 | 5 15 Final Carried 7 | 3 7 Class Distribution -------------------- 100% | Mutant Dominant Class ---------------- Mutant | -10/Materials Resources | -11 -10 ----------- Run | Yrd Mat Matter Collected 427 | 268 159 Remotely . | . . Salvage Created 204 | 50 154 Parts 25 | 3 22 Haulers Intercepted . | . . Recyclers Shooed 1 | . 1 Parts Field Recycled . | . . Retrieved Matter . | . . Parts Self-Destructed . | . . Prevented . | . . Parts Restored . | . . Kills | -11 -10 ------- Run | Yrd Mat Combat Hostiles Destroyed 13 | 1 12 Guns 6 | 1 5 Cannons 6 | . 6 AOE 1 | . 1 Classes Destroyed 4 | 1 3 Worker 1 | . 1 Watcher 1 | . 1 Swarmer 9 | . 9 Grunt 4 | 1 3 Best Kill Streak 7 | 1 7 Combat Bots Only 6 | 1 6 Max Kills in Single Turn 1 | 1 1 Gunslinging . | . . Exploded 1 | . 1 Melee . | . . Uniques/NPCs Destroyed . | . . Combat | -11 -10 -------- Run | Yrd Mat Hostile Shots Fired 137 | 4 133 Missed 27 | 2 25 Hits 110 | 2 108 Projectile 110 | 2 108 Damage Taken 1073 | 22 1051 Core 252 | . 252 Absorbed by Shields . | . . Core Remaining (%) 100 | 100 . Volleys Fired 45 | 2 43 Largest 2 | 2 2 Hottest 200 | 40 200 Shots Fired 78 | 4 74 Gun 53 | 4 49 Cannon 14 | . 14 Launcher . | . . Special 11 | . 11 Kinetic 55 | 4 51 Thermal 21 | . 21 Explosive . | . . Electromagnetic 2 | . 2 Robot Hit Streak 10 | 2 10 Robot Miss Streak 8 | 2 8 Penetration Max . | . . Secondary Targets 1 | . 1 Max Gunslinging Chain 1 | . 1 Shots Hit Robots 43 | 2 41 Core Hits 19 | 2 17 Critical Kills . | . . Critical Parts Destroyed . | . . Critical Strikes . | . . Melee Attacks . | . . Impact . | . . Slashing . | . . Piercing . | . . Sneak Attacks . | . . Combat Hostiles . | . . Follow-up Attacks . | . . Damage Inflicted 674 | 21 653 Guns 300 | 21 279 Cannons 159 | . 159 Explosions 20 | . 20 Melee . | . . Ramming 3 | . 3 Kinetic 392 | 21 371 Thermal 257 | . 257 Explosive . | . . Electromagnetic 22 | . 22 Impact . | . . Slashing . | . . Piercing . | . . Highest Corruption 1 | . 1 Average Corruption 1 | . 1 Corruption Purged . | . . Corruption Blocked . | . . Overload Shots . | . . Overflow Damage 8 | . 8 Projectiles 8 | . 8 Explosions . | . . Melee . | . . Knockbacks 3 | . 3 Impact . | . . Kinetic 2 | . 2 Secondary 1 | . 1 Self-Inflicted Damage 40 | . 40 Shots 1 | . 1 Rammed 1 | . 1 Targets Rammed 1 | . 1 Kicked . | . . Crushed . | . . Highest Temperature 32 | 6 32 Average Temperature 13 | 6 13 Received Heat Transfer 246 | 12 234 Siege Activations . | . . Martial Activations . | . . Shielding Activations . | . . Robots Disrupted . | . . Combat Hostiles . | . . Robots Corrupted . | . . Combat Hostiles . | . . Parts Fried . | . . Impact Corruptions . | . . Robots Melted . | . . Combat Hostiles . | . . Parts Melted . | . . Heat Transferred 500 | . 500 Parts Sabotaged . | . . Parts Stolen . | . . Parts Stripped . | . . Power Chain Reactions 1 | . 1 Alert | -11 -10 ------- Run | Yrd Mat Maximum Alert Level . | . . Low Security (%) 100 | 100 100 Level 1 . | . . Level 2 . | . . Level 3 . | . . Level 4 . | . . Level 5 . | . . High Security . | . . Max Security . | . . Peak Influence 63 | 20 63 Initial 6 | . 6 Average 9 | 3 9 Influence Increases 361 | 20 341 Destroy 0b10 Robot/C 260 | 20 240 Destroy 0b10 Robot/NC 10 | . 10 Destroy Leader 32 | . 32 Successful Hack 10 | . 10 Destroy Structure 4 | . 4 Partial Spotted 15 | . 15 Lose Combat Pursuer 30 | . 30 Influence Decreases 361 | 10 351 Entered New Map 4 | . 4 Time Decay 268 | 10 258 Lost Part 89 | . 89 Squads Dispatched 1 | . 1 Investigation . | . . Extermination . | . . Reinforcement 1 | . 1 Assault . | . . Garrison . | . . Intercept . | . . Searches Triggered . | . . Construction Impeded . | . . Haulers Reinforced . | . . Active Scanning Responses . | . . Cargo Convoy Interrupts . | . . Stealth | -11 -10 --------- Run | Yrd Mat Distress Signals 1 | . 1 Communications Jammed . | . . Distress Signals . | . . Times Spotted 24 | 1 23 Peak Tracking Total 3 | 1 3 Tactical Retreats 2 | . 2 Traps | -11 -10 ------- Run | Yrd Mat Traps Triggered 2 | . 2 Indirectly . | . . Trap Hack Attempts . | . . Triggered . | . . Disarmed . | . . Reprogrammed . | . . Reused . | . . Traps Extracted . | . . Installed . | . . Triggered . | . . Machines | -11 -10 ---------- Run | Yrd Mat Machines Disabled . | . . Max in Single Turn . | . . Machines Repaired . | . . Machines Dismantled . | . . Machines Sabotaged . | . . Overloaded Fab Kills . | . . Hacking | -11 -10 --------- Run | Yrd Mat Machines Accessed 5 | . 5 Terminals 4 | . 4 Fabricators . | . . Repair Stations . | . . Recycling Units 1 | . 1 Scanalyzers . | . . Garrison Access . | . . Total Hacks 22 | . 22 Successful 18 | . 18 Failed 4 | . 4 Catastrophic 1 | . 1 Database Lockouts . | . . Manual . | . . Terminals 16 | . 16 Fabricators . | . . Repair Stations . | . . Recycling Units 6 | . 6 Scanalyzers . | . . Garrison Access . | . . Terminal Hacks 12 | . 12 Record 5 | . 5 Prototype ID Bank 1 | . 1 Emergency Access Points 1 | . 1 Alert Level 2 | . 2 Locate Traps 1 | . 1 Dispatch Records 1 | . 1 Maintenance Status 1 | . 1 Fabricator Hacks . | . . Repair Station Hacks . | . . Recycling Unit Hacks 6 | . 6 Recycle Component 4 | . 4 Process 1 | . 1 Retrieve Matter 1 | . 1 Scanalyzer . | . . Garrison Access Hacks . | . . Unauthorized Hacks . | . . Terminals . | . . Fabricators . | . . Repair Stations . | . . Recycling Units . | . . Scanalyzers . | . . Garrison Access . | . . Data Cores Recovered . | . . Used . | . . Hacking Detections 4 | . 4 Full Trace Events 1 | . 1 Feedback Events 1 | . 1 Corruption 1 | . 1 Feedback Blocked . | . . Robot Schematics Acquired . | . . Robots Built . | . . Authchips . | . . Time . | . . Total Robot Build Rating . | . . Part Schematics Acquired . | . . Parts Built . | . . Authchips . | . . Time . | . . Total Part Build Rating . | . . Part Studies Acquired . | . . Parts Repaired . | . . Time . | . . Parts Recycled 4 | . 4 Recycled Matter 175 | . 175 Retrieved Matter 251 | . 251 Retrieved Components . | . . Parts Scanalyzed . | . . Part Schematics Acquired . | . . Parts Damaged . | . . Bothacking | -11 -10 ------------ Run | Yrd Mat Used RIF Installer . | . . Robots Hacked . | . . Non-combat . | . . Combat . | . . Robot Hacks Applied . | . . Relay Couplers Released . | . . Fabnet Peak Effective % . | . . Robots Rewired . | . . Allies Hacked . | . . Hacks Repelled . | . . Allies | -11 -10 -------- Run | Yrd Mat Total Allies . | . . Largest Group . | . . Highest-Rated Group . | . . Highest-Rated Ally . | . . Total Orders . | . . Ally Attacks . | . . Total Damage . | . . Kills . | . . Allies Corrupted . | . . Allies Melted . | . . Intel | -11 -10 ------- Run | Yrd Mat Active Infowar (turns) 690 | . 690 Sensors 83 | . 83 Structural 690 | . 690 Robot Analysis Total . | . . Derelict Logs Recovered . | . . Drone Launches . | . . Drone Recoveries . | . . Exploration | -11 -10 ------------- Run | Yrd Mat Turns Passed 1287 | 91 1196 Spaces Moved 1158 | 98 1060 Core 38 | 23 15 Treads . | . . Legs 332 | . 332 Wheels 338 | 75 263 Hover 19 | . 19 Flight 431 | . 431 Fastest Speed 40 | 50 40 Average Speed 89 | 72 90 Slowest Speed 240 | 80 240 Overloaded Moves . | . . Propulsion Burnouts . | . . Robots Hopped . | . . Potential Cave-ins . | . . Cave-ins Triggered . | . . Exploration Rate (%) 41 | 5 78 Regions Visited 1 Branch Regions . Pre-discovered Areas . | . . Known Exits Taken . | . . Unknown Exits Taken 1 | 1 . Scrap Searched . | . . Spaces Dug . | . . Terrain Destroyed 3 | . 3 Melee . | . . Projectile . | . . AOE 3 | . 3 Terrain Rammed . | . . Walls Destroyed . | . . Machines Disabled . | . . Actions | -11 -10 --------- Run | Yrd Mat Total 1331 | 114 1217 Wait 32 | . 32 Move 1157 | 97 1060 Hop . | . . Pick Up 37 | 8 29 Fast Attach 3 | . 3 Attach 32 | 6 26 Detach 14 | 1 13 Swap . | . . Drop 10 | . 10 Fire 45 | 2 43 Melee . | . . Ram 1 | . 1 Kick . | . . Crush . | . . Escape Stasis . | . . Rewire . | . . Trap . | . . Miscellaneous . | . . Route ------- -11/Scrapyard -10/Materials (discovered 3 exits: [*Mat x2] / [*Min]) History --------- Turn | Location | Event 2 | -11/Scrapyard | Met Revision 17 60 | -11/Scrapyard | Discovered new exit (range 8) 92 | -11/Scrapyard | Entered Materials 123 | -10/Materials | Discovered new exit (range 9) 312 | -10/Materials | Build established: Mutant 365 | -10/Materials | Discovered new exit (range 12) 432 | -10/Materials | Core integrity fell below 50% 464 | -10/Materials | Lost 6 parts (1p1n1u3w) 787 | -10/Materials | Discovered new exit (range 16) 823 | -10/Materials | Core integrity fell below 20% 1288 | -10/Materials | Destroyed by G-34 Mercenary with Small Laser Last Messages --------------- 01173_ Discarded Signal Interpreter. 01174_ Acquired Sensor Array. 01177_ Acquired Lrg. Storage Unit. 01207_ Acquired Targeting Computer. 01218_ O-16 Technician: "IFF HANDSHAKE FAILED. SECURING TERMINAL." 01220_ O-16 Technician uses terminal to summon reinforcements. 01220_ ALERT: Hostiles spotted, dispatching reinforcements to Terminal M003. 01220_ O-16 Technician locks terminal. [Achievement: Uninvited Guest] 01246_ T-07 Excavator is excavating. 01251_ Acquired Imp. Hover Unit. 01257_ Acquired Shield Generator. 01258_ Dropped Sensor Array. The Lrg. Storage Unit has expanded your inventory capacity. Items held in inventory do not count towards total mass and therefore cannot slow you down. 01263_ Acquired Imp. Hover Unit. 01271_ R-06 Scavenger collects Sensor Array. 01281_ W-16 Scout sends out distress signal. Map ----- +----------------------------------------------------+ | ????????????## """ ##????????## | | ????????????## """ ##????????## | | ??????######## """ ##????????## | | ??????######## ############ | | ??????## ###+################# | | ??????## | | ??????## | | ??????## | | ????#### ##########+#### | | ????######+########## # ###### | | ????## T + + # #! # | | ????## """ ###### # #!! # | | ????## """ ###### # # # | | ????## """ ##??## # # # | | ????## ##??## # # # | | ????## = ##??######### + ""# | | ????## ##??######### # %Y"# | | ????## ##?????????## # ""# | | ????####/##########???????## # # | | ????#### ##########???????## ###### | | ??????## ##==!! ##???????## ###### | | ??????## ##==! ##???????## ##??## | | ?????????## ###??????## ##??## | | ??????## #### ###??????## ###### | | ?????? #u#### ########## ###### | | ???# # g @ r########## #### | | ???## " | | ???### # w ############### | | ???###### ### ############### | | ??????### ##########??## # | | ???????## ?#########??## # | | ???????## ????????????## # | | ??????????????????????## # | | ??????????????????????## # | | ??????????????????????## # | | ??????????????????????## # | | ??????????????????????## != # | | ??????????????????????## = + ## | | ??????????????????????######+#### ## | | ??????????????????????###### #### ## | | ??????????????????????????## ### # | | ??????????????????????????## ### # | | ??????????????????????????## ### T # | | ??????????????????????????## ### # | | ????????????????????????#### ### # | | ????????????????????????####+#### ## | | ????????????????????????## # ## | | ????????????????????????## # ## | | ????????????????????????## # ## | | ????????????????????????## # ## | +----------------------------------------------------+ Best States ------------- Heat Dissipation 35 Energy Generation 10 Energy Capacity 250 Matter Stores 306 Matter Capacity 450 Sight Range 16 Robot Scan Range 14 Terrain Scan Density 10 Evasion (%) 62 Item Schematics ----------------- None Robot Schematics ------------------ None Fabricated ------------ Nothing Repaired ---------- Nothing Studied --------- None Alien Tech Used ----------------- None Achievements -------------- Bumper Bots Crack Shot DATA ERROR: Steam Global Achievement% Storm Trooper There's More Where That Came From Uninvited Guest Challenges ------------ None Game ------ Seed MobileAuthchipTurretformer Manual? 0 Play Time 00:52:49 Cumulative 1.5 hours Start 2026.04.26 @ 19:01:14 End 2026.04.26 @ 22:29:09 Sessions 3 Manual Loads 0 Difficulty Rogue Special Mode None Game No. 2 Rogue 2 Adventurer 0 Explorer 0 Win Type - Total 0 Types 0/0/0/0/0/0/0/0/0/0 Lore% 0 Gallery% 1 Achievement% 1 Wizard Run 0 Options --------- Layout 0 ASCII 1 Keyboard 1 Movement Vi Keybinds 0 Fullscreen 1 Font 36/X11++ Map View 76x50 Zoom Use 0% Tactical HUD 1 Map Filters NONE Filters NONE Steam 1 RUN: 65107460-45a5-4286-a61e-07cfc06ab352